fUSD/lending_fUSD_20250405
["ID","MTS","AMOUNT","RATE_DAILY","PERIOD"]
[357190987,1743879031478,-297.17206569,0.0002472,2]
[357190988,1743879031587,-8680.8645565,0.0002472,2]
[357190989,1743879031643,-872.32,0.0002472,2]
[357190990,1743879031656,-546.70831491,0.0002472,2]
[357190991,1743879031752,-2199.3623311,0.0002472,2]
[357190992,1743879031764,-373.74110185,0.0002472,2]
[357190993,1743879031775,-1671.65756453,0.0002472,2]
[357190994,1743879031785,-297.17206569,0.0002478,2]
[357190995,1743879031795,-4993.63521071,0.0002488,2]
[357191406,1743879037425,-2403.78704119,0.0002488,2]
[357191407,1743879037436,-29891.60771501,0.0002488,2]
[357191408,1743879037479,-517.89622245,0.0002488,2]
[357191409,1743879037491,-1606.12710976,0.0002488,2]
[357191410,1743879037536,-961.8123939,0.0002488,2]
[357191411,1743879037648,-3981.12255333,0.0002488,2]
[357191412,1743879037659,-400.0,0.00025,2]
[357191413,1743879037668,-386.51,0.00026849,2]
[357191414,1743879037679,-1095.7746409,0.00027,2]
[357191415,1743879037690,-200.0,0.00027,2]
[357191416,1743879037701,-200.0,0.00027,2]
[357191417,1743879037711,-450.0,0.00027,2]
[357191418,1743879037721,-719.43,0.00027157,2]
[357191419,1743879037730,-200.0,0.0002727,2]
[357191420,1743879037740,-200.0,0.0002727,2]
[357191421,1743879037749,-200.0,0.00027543,2]
[357191423,1743879037760,-200.0,0.00027818,2]
[357191425,1743879037769,-200.0,0.00028096,2]
[357191427,1743879037779,-177.74,0.00028216,2]
[357191429,1743879037789,-410.67,0.00028313,2]
[357191431,1743879037799,-250.0,0.00028429,2]
[357191433,1743879037808,-4580.47126344,0.00028671,2]
[357191454,1743879039564,-1334.50704258,0.00028671,2]
[357191455,1743879039777,-327.64335458,0.00028671,2]
[357191456,1743879039788,-375.7700106,0.00028671,2]
[357191457,1743879039869,-6136.87558576,0.00028671,2]
[357191458,1743879039940,-11144.73274304,0.00028671,2]
[357191459,1743879039951,-150.0,0.00028772,7]
[357191460,1743879039960,-190.52,0.00028901,2]
[357191461,1743879039969,-1000.0,0.00028959,2]
[357191462,1743879039978,-500.0,0.00029,2]
[357191463,1743879039987,-250.0,0.00029155,2]
[357191464,1743879039996,-719.43,0.00029421,2]
[357191465,1743879040006,-379.935,0.00029635,23]
[357191466,1743879040015,-410.67,0.00029729,2]
[357191467,1743879040024,-166.67,0.0002982,2]
[357191468,1743879040034,-1000.0,0.00030036,2]
[357191469,1743879040044,-2147.99317279,0.00030036,2]
[357191470,1743879040055,-270.19762721,0.00030036,2]
[357191471,1743879040065,-3991.8328,0.00030036,2]
[357191472,1743879040074,-4777.3267,0.00030036,2]
[357191473,1743879040083,-3527.0344,0.00030036,2]
[357191474,1743879040092,-1504.7279,0.00030036,2]
[357191475,1743879040111,-318.4489,0.00030036,2]
[357191476,1743879040122,-6153.8552,0.00030036,2]
[357191477,1743879040131,-500.0,0.00030136,2]
[357191478,1743879040140,-500.0,0.00030136,2]
[357191479,1743879040150,-500.0,0.00030136,2]
[357191480,1743879040159,-500.0,0.00030136,2]
[357191481,1743879040168,-782.45,0.00030136,2]
[357191482,1743879040177,-2000.0,0.00030136,2]
[357191483,1743879040187,-500.0,0.00030136,2]
[357191484,1743879040196,-500.0,0.00030136,2]
[357191485,1743879040205,-500.0,0.00030136,2]
[357191486,1743879040214,-500.0,0.00030136,2]
[357191487,1743879040224,-500.0,0.00030136,2]
[357191488,1743879040233,-500.0,0.00030136,2]
[357191489,1743879040242,-500.0,0.00030136,2]
[357191490,1743879040252,-1264.17,0.00030136,2]
[357191491,1743879040261,-39.14925898,0.00030136,2]
[357191504,1743879044093,-460.85074102,0.00030136,2]
[357191505,1743879044102,-433.93621122,0.00030136,2]
[357191506,1743879044211,-66.06378878,0.00030136,2]
[357191507,1743879044221,-500.0,0.00030136,2]
[357191508,1743879044230,-263.6514,0.00030209,2]
[357191509,1743879044240,-151.28,0.00030209,2]
[357191510,1743879044249,-902.59618706,0.00030309,2]
[357191520,1743879045785,-4418.76905243,0.00030309,2]
[357191572,1743880231671,-5026.918,0.000241,5]
[357191573,1743880231858,-452.95011032,0.000241,5]
[357191574,1743880231935,-74.13188968,0.000241,5]
[357191575,1743880231945,-290.17419941,0.00026749,2]
[357191576,1743880231954,-396.45,0.00026849,2]
[357191577,1743880231963,-591.21734058,0.00027377,2]
[357191578,1743880231975,-56.26265942,0.00027377,2]
[357191579,1743880231984,-1000.0,0.00029229,2]
[357191580,1743880231994,-177.74,0.00029276,2]
[357191581,1743880232003,-13.11526186,0.00029276,2]
[357191582,1743880232015,-233.28473814,0.00029276,2]
[357191584,1743880232024,-150.0,0.00029283,7]
[357191585,1743880232033,-3008.86401501,0.00029379,2]
[357191588,1743880232048,-294.33656805,0.00029379,2]
[357191589,1743880232060,-475.22000005,0.00029379,2]
[357191590,1743880232075,-1642.60552486,0.00029379,2]
[357191591,1743880232086,-1208.7485247,0.00029379,2]
[357191592,1743880232098,-959.69674344,0.00029379,2]
[357191844,1743880237483,-1325.245972,0.00029082,2]
[357191845,1743880237494,-16310.52862389,0.00029379,2]
[357191846,1743880237503,-2751.0,0.00029564,2]
[357191847,1743880237513,-647.48,0.00029641,2]
[357191848,1743880237522,-2406.33108281,0.00030098,2]
[357191849,1743880237532,-561.6929,0.00030098,2]
[357191850,1743880237544,-4211.83531093,0.00030099,2]
[357191852,1743880237553,-161.39548801,0.00030099,2]
[357191853,1743880237563,-5453.5443,0.00030099,2]
[357191854,1743880237572,-3411.2904,0.00030099,2]
[357191855,1743880237581,-2500.0,0.00030099,2]
[357191856,1743880237591,-1000.0,0.00030099,2]
[357191857,1743880237600,-10897.1719,0.00030099,2]
[357191858,1743880237610,-303.948,0.00030109,25]
[357191859,1743880237619,-165.64507145,0.00030109,2]
[357191860,1743880237629,-314.8355,0.00030109,2]
[357191861,1743880237638,-1245.1968,0.00030109,2]
[357191862,1743880237647,-5610.7049,0.00030109,2]
[357191863,1743880237657,-9779.9907,0.00030109,2]
[357191864,1743880237667,-387.1862,0.00030109,2]
[357191865,1743880237676,-13181.97489631,0.00030198,2]
[357191866,1743880237686,-517.18,0.00030198,2]
[357191867,1743880237695,-500.0,0.00030198,2]
[357191868,1743880237705,-500.0,0.00030198,2]
[357191869,1743880237715,-500.0,0.00030198,2]
[357191870,1743880237725,-500.0,0.00030198,2]
[357191871,1743880237735,-500.0,0.00030198,2]
[357191872,1743880237744,-500.0,0.00030198,2]
[357191873,1743880237754,-511.26,0.00030198,2]
[357191874,1743880237764,-500.0,0.00030198,2]
[357191875,1743880237774,-1232.14,0.00030198,2]
[357191876,1743880237783,-500.0,0.00030198,2]
[357191877,1743880237793,-500.0,0.00030198,2]
[357191878,1743880237802,-500.0,0.00030198,2]
[357191879,1743880237811,-500.0,0.00030198,2]
[357191880,1743880237820,-500.0,0.00030198,2]
[357191881,1743880237830,-500.0,0.00030198,2]
[357191882,1743880237839,-500.0,0.00030198,2]
[357191883,1743880237848,-500.0,0.00030198,2]
[357191884,1743880237858,-500.0,0.00030198,2]
[357191885,1743880237867,-500.0,0.00030198,2]
[357191886,1743880237876,-749.55,0.00030198,2]
[357191887,1743880237886,-500.0,0.00030198,2]
[357191888,1743880237895,-500.0,0.00030198,2]
[357191889,1743880237905,-500.0,0.00030198,2]
[357191890,1743880237914,-500.0,0.00030198,2]
[357191892,1743880237924,-500.0,0.00030198,2]
[357191894,1743880237933,-500.0,0.00030198,2]
[357191896,1743880237942,-500.0,0.00030198,2]
[357191898,1743880237951,-500.0,0.00030198,2]
[357191900,1743880237960,-500.0,0.00030198,2]
[357191902,1743880237970,-500.0,0.00030198,2]
[357191905,1743880237978,-500.0,0.00030198,2]
[357191908,1743880237987,-500.0,0.00030198,2]
[357191910,1743880237996,-500.0,0.00030198,2]
[357191912,1743880238005,-500.0,0.00030198,2]
[357191914,1743880238015,-500.0,0.00030198,2]
[357191916,1743880238024,-1087.57,0.00030198,2]
[357191918,1743880238033,-599.1,0.00030198,2]
[357191921,1743880238042,-500.0,0.00030198,2]
[357191923,1743880238061,-500.0,0.00030198,2]
[357191925,1743880238071,-500.0,0.00030198,2]
[357191927,1743880238080,-7822.26,0.00030198,2]
[357191929,1743880238090,-500.0,0.00030198,2]
[357191931,1743880238099,-681.44,0.00030198,2]
[357191933,1743880238109,-500.0000002,0.00030198,2]
[357191934,1743880238119,-500.0,0.00030198,2]
[357191935,1743880238128,-566.67,0.00030198,2]
[357191937,1743880238138,-723.17,0.00030198,2]
[357191939,1743880238147,-500.0,0.00030198,2]
[357191941,1743880238157,-749.84,0.00030198,2]
[357191943,1743880238167,-500.0,0.00030198,2]
[357191945,1743880238176,-1414.29,0.00030198,2]
[357191947,1743880238185,-500.0,0.00030198,2]
[357191949,1743880238195,-500.0,0.00030198,2]
[357191951,1743880238204,-2000.0,0.00030198,2]
[357191953,1743880238213,-500.0,0.00030198,2]
[357191955,1743880238223,-500.0,0.00030198,2]
[357191957,1743880238232,-708.75,0.00030198,2]
[357191959,1743880238241,-750.27,0.00030198,2]
[357191961,1743880238252,-500.0,0.00030198,2]
[357191963,1743880238261,-1279.37,0.00030198,2]
[357191965,1743880238271,-500.0,0.00030198,2]
[357191966,1743880238280,-5299.26,0.00030198,2]
[357191968,1743880238290,-500.0,0.00030198,2]
[357191969,1743880238300,-4089.4,0.00030198,2]
[357191970,1743880238309,-500.0,0.00030198,2]
[357191971,1743880238319,-500.0,0.00030198,2]
[357191972,1743880238329,-2649.18,0.00030198,2]
[357191973,1743880238338,-500.0,0.00030198,2]
[357191974,1743880238348,-500.0,0.00030198,2]
[357191975,1743880238358,-1214.41,0.00030198,2]
[357191976,1743880238368,-500.0,0.00030198,2]
[357191977,1743880238384,-500.0,0.00030198,2]
[357191978,1743880238394,-500.0,0.00030198,2]
[357191979,1743880238404,-514.81,0.00030198,2]
[357191980,1743880238416,-500.0,0.00030198,2]
[357191982,1743880238426,-9870.68,0.00030198,2]
[357191984,1743880238435,-500.0,0.00030198,2]
[357191986,1743880238445,-505.44776223,0.00030198,2]
[357191988,1743880238455,-506.19441511,0.00030198,2]
[357191990,1743880238465,-500.0,0.00030198,2]
[357191992,1743880238474,-500.0,0.00030198,2]
[357191994,1743880238484,-178.34343793,0.00030198,2]
[357191996,1743880238493,-500.0,0.00030198,2]
[357191997,1743880238503,-500.0,0.00030198,2]
[357191999,1743880238513,-305.73451383,0.00030198,2]
[357192001,1743880238522,-503.85902976,0.00030198,2]
[357192003,1743880238532,-500.0,0.00030198,2]
[357192005,1743880238542,-1211.5,0.00030198,2]
[357192007,1743880238552,-500.0,0.00030198,2]
[357192009,1743880238561,-580.34665151,0.00030198,2]
[357192011,1743880238571,-507.60034743,0.00030198,2]
[357192013,1743880238581,-513.25225403,0.00030198,2]
[357192015,1743880238591,-500.0,0.00030198,2]
[357192018,1743880238601,-506.9261356,0.00030198,2]
[357192020,1743880238610,-37931.98887026,0.00030199,2]
[357192022,1743880238624,-2753.86161001,0.00030199,2]
[357192032,1743880239833,-500.0,0.00030198,2]
[357192033,1743880239842,-45.7393,0.00030199,2]
[357192034,1743880239857,-508.94650917,0.00030199,2]
[357192035,1743880239868,-901.4202829,0.00030199,2]
[357192036,1743880239879,-552.31242,0.00030199,2]
[357192037,1743880239893,-51455.01506074,0.00030199,2]
[357192038,1743880239905,-516.6712998,0.00030199,2]
[357192039,1743880239916,-254.51293307,0.00030199,2]
[357192040,1743880240059,-26943.96233794,0.00030199,2]
[357192042,1743880240170,-535.99855628,0.00030199,2]
[357192157,1743880242628,-621.448,0.00030199,2]
[357192158,1743880242640,-15630.33200117,0.00030199,2]
[357192168,1743880243398,-2029.46528846,0.00030199,2]
[357192169,1743880243410,-118132.4893732,0.00030199,2]
[357192170,1743880243421,-127842.016785,0.00030199,2]
[357192171,1743880243430,-151.29,0.00030199,2]
[357192172,1743880243439,-17254.2775896,0.00030208,2]
[357192173,1743880243451,-500.0,0.00030208,2]
[357192174,1743880243460,-500.0,0.00030208,2]
[357192175,1743880243469,-749.55,0.00030208,2]
[357192176,1743880243479,-749.55,0.00030208,2]
[357192177,1743880243488,-1957.79154579,0.00030209,2]
[357192178,1743880243500,-9854.62275118,0.00030209,2]
[357192179,1743880243515,-1926.55621144,0.00030209,2]
[357192180,1743880244095,-214.13,0.00030209,2]
[357192183,1743880245690,-6350.05475273,0.00030209,2]
[357192184,1743880245747,-724.4477605,0.00030209,2]
[357192185,1743880245804,-4827.86045042,0.00030209,2]
[357192186,1743880245816,-2638.00563515,0.00030209,2]
[357192187,1743880245829,-398.46941812,0.00030209,2]
[357192188,1743880245848,-16510.946959,0.00030209,2]
[357192189,1743880245914,-1494.35,0.00030209,2]
[357192190,1743880245972,-8314.2,0.00030209,2]
[357192191,1743880245983,-19261.79450107,0.00030209,2]
[357192192,1743880246032,-6014.48208618,0.00030209,2]
[357192193,1743880246088,-3049.65376164,0.00030209,2]
[357192205,1743880252045,-159.83696741,0.00030198,2]
[357192206,1743880261874,-152.735,0.0003001,2]
[357192207,1743880261897,-7.79035,0.00030098,2]
[357192209,1743880329390,-160.52535,0.00029998,2]
[357192210,1743880329412,-89.47465,0.00030098,2]
[357192212,1743880482028,-150.0,0.00019,2]
[357192213,1743880485216,-100.0,0.00019,2]
[357192214,1743880485246,-72.67877309,0.00021,2]
[357192215,1743880487353,-176.46,0.00021,2]
[357192216,1743880556048,56351.22339505,0.00036147,120]
[357192217,1743881109766,-173.19014926,0.0002,2]
[357192218,1743881129796,-155.76,0.0002,2]
[357192220,1743881148042,-297.17206569,0.00030029,4]
[357192238,1743881159830,-297.17206569,0.0002,2]
[357192239,1743881168690,-167.8371,0.000199,2]
[357192240,1743881174990,-144.4827,0.000199,2]
[357192241,1743881175014,-29.6273,0.00019999,2]
[357192242,1743881186342,-296.49268158,0.00019899,2]
[357192243,1743881194353,-95.43170942,0.00019899,2]
[357192244,1743881194378,-57.78115256,0.00019999,2]
[357192246,1743881222721,-222.67521801,0.00019999,2]
[357192247,1743881222750,-77.32478199,0.00019999,2]
[357192248,1743881223832,-588.67521801,0.00019999,2]
[357192249,1743881228633,-163.65090034,0.00019999,2]
[357192252,1743881263531,-591.36556772,0.000199,2]
[357192253,1743881263554,-304.15877808,0.000199,2]
[357192254,1743881269031,-287.20678964,0.000199,2]
[357192255,1743881282802,-286.19023269,0.00019999,2]
[357192256,1743881282826,-13.80976731,0.00019999,2]
[357192257,1743881282973,1139.74637923,0.00015,2]
[357192258,1743881283002,4851.65686858,0.00015,2]
[357192259,1743881283031,4935.34200243,0.00015,2]
[357192260,1743881283060,46000.0,0.00015,2]
[357192261,1743881283091,5613.56798235,0.00015,2]
[357192262,1743881283120,6301.98549886,0.00015,2]
[357192263,1743881283156,5267.86372119,0.00015,2]
[357192264,1743881283186,6165.85349165,0.00015,2]
[357192265,1743881283217,5691.45767555,0.00015,2]
[357192266,1743881283246,6782.32480684,0.00015,2]
[357192267,1743881283276,4652.62190301,0.00015,2]
[357192268,1743881283307,5000.6082721,0.00015,2]
[357192269,1743881283339,5636.2901367,0.00015,2]
[357192270,1743881283371,4969.45150127,0.00015,2]
[357192271,1743881283397,11122.0,0.00015,2]
[357192272,1743881283427,5012.61112716,0.00015,2]
[357192273,1743881283457,5812.0584422,0.00015,2]
[357192274,1743881283487,4996.65685737,0.00015,2]
[357192275,1743881283523,5006.07636637,0.00015,2]
[357192276,1743881283553,4847.4666057,0.00015,2]
[357192277,1743881283584,5943.66530498,0.00015,2]
[357192278,1743881283614,1302202.49383073,0.00015,2]
[357192279,1743881283645,935075.33151142,0.00015,2]
[357192280,1743881284278,-286.19023269,0.00019999,2]
[357192281,1743881291437,-514.92185882,0.0002,2]
[357192282,1743881306974,-165.11349362,0.0002,2]
[357192283,1743881319007,565.45955361,0.000149,2]
[357192284,1743881319969,-158.8258547,0.0002,2]
[357192287,1743881371886,-44000.0,0.0002,2]
[357192293,1743881408949,-194.83188909,0.0001999,2]
[357192294,1743881431500,-159.79533431,0.0001999,2]
[357192308,1743881431740,-141.93729868,0.0001999,2]
[357192311,1743881431750,-1220.09927305,0.0002,2]
[357192316,1743881431797,-31194.7925317,0.0002,2]
[357192317,1743881431813,-407.0,0.0002,2]
[357192318,1743881431854,-289.89542101,0.0002,2]
[357192319,1743881431865,-331.2110336,0.0002,2]
[357192320,1743881432069,-1839.32768339,0.0002,2]
[357192321,1743881432080,-714.21207113,0.0002,2]
[357192322,1743881432091,-4891.62307655,0.0002,2]
[357192323,1743881432102,-447.46047696,0.0002,2]
[357192607,1743881437683,-9399.88517363,0.0002,2]
[357192608,1743881437695,-468.40396298,0.0002,2]
[357192609,1743881437738,-13867.74663259,0.0002,2]
[357192610,1743881437750,-23646.8871,0.0002,2]
[357192611,1743881437762,-22444.58501766,0.0002,2]
[357192612,1743881437774,-2321.34925912,0.0002,2]
[357192613,1743881437847,-1942.4,0.0002,2]
[357192614,1743881437862,-5711.91562,0.0002,2]
[357192615,1743881437873,-6375.87127862,0.0002,2]
[357192616,1743881437888,-16696.9305309,0.0002,2]
[357192617,1743881437901,-5108.28043076,0.0002,2]
[357192618,1743881437954,-351.12608586,0.0002,2]
[357192619,1743881437966,-822.49017547,0.0002,2]
[357192688,1743881440348,-3658.75155461,0.0002,2]
[357192690,1743881440359,-2794.93488083,0.0002,2]
[357192693,1743881440371,-297.40507999,0.0002,2]
[357192696,1743881440390,-8605.69970125,0.0002,2]
[357192720,1743881443618,-204.74688392,0.000199,2]
[357192721,1743881443628,-612.8802072,0.0002,2]
[357192722,1743881443643,-4540.0,0.0002,2]
[357192723,1743881443657,-1963.15432555,0.0002,2]
[357192724,1743881444949,-166.99823948,0.000199,2]
[357192725,1743881445843,-7132.88662552,0.000199,2]
[357192726,1743881445856,-163.65090034,0.000199,2]
[357192727,1743881445865,-96169.44147414,0.0002,2]
[357192728,1743881445898,-5541.49536745,0.0002,2]
[357192729,1743881446135,-409317.8571143,0.0002,2]
[357192732,1743881447586,-350.89907894,0.000199,2]
[357192733,1743881471139,-150.0,0.000199,2]
[357192734,1743881475354,-150.0,0.00019899,2]
[357192735,1743881492617,-250.0,0.00019899,2]
[357192736,1743881524817,-300.0,0.00019899,2]
[357192737,1743881583609,-169.49399979,0.00019873,2]
[357192738,1743881592360,-140.49689863,0.00019873,2]
[357192739,1743881592381,-79.87194588,0.00019873,2]
[357192740,1743881593836,-220.36884451,0.00019873,2]
[357192741,1743881644342,-164.13,0.00019773,2]
[357192742,1743881704190,-157.98384103,0.00019887,2]
[357192743,1743881717499,-275.51155881,0.00019773,2]
[357192744,1743881913743,-182.13046706,0.000196,2]
[357192745,1743882005011,-175.14,0.00018962,2]
[357192746,1743882005036,-1.65686465,0.00019281,2]
[357192747,1743882012096,-248.34313535,0.00019281,2]
[357192748,1743882012118,-27.95453294,0.000196,2]
[357192749,1743882012145,-243.159,0.000196,2]
[357192750,1743882012170,-153.99931861,0.000198,2]
[357192751,1743882012191,-153.9993186,0.0001985,2]
[357192752,1743882012215,-163.3719992,0.000199,2]
[357192753,1743882012239,-3860.43916784,0.000199,2]
[357192754,1743882012263,-2257.41035249,0.000199,2]
[357192755,1743882012285,-153.9993186,0.000199,2]
[357192756,1743882012306,-156.83320581,0.00019973,2]
[357192757,1743882012327,-500.0,0.00019973,2]
[357192758,1743882012349,-155.64475097,0.00019973,2]
[357192759,1743882012370,-160.26893976,0.00019973,2]
[357192760,1743882012391,-500.0,0.00019973,2]
[357192761,1743882012413,-238.88607484,0.00019973,2]
[357192762,1743882012435,-265.93822188,0.00019973,2]
[357192763,1743882012458,-1206.65918236,0.0001999,2]
[357192764,1743882012488,-7978.31,0.0001999,2]
[357192765,1743882012510,-7978.31,0.0001999,2]
[357192766,1743882012532,-300.0,0.00019999,2]
[357192767,1743882012554,-150.0,0.00019999,2]
[357192768,1743882012576,-208.05835475,0.00019999,2]
[357192769,1743882012599,-500.0,0.00019999,2]
[357192770,1743882012624,-561093.415126,0.0002,2]
[357192771,1743882240705,168.06,0.00013699,2]
[357192772,1743882312807,-250.0,0.00019,2]
[357192774,1743882428787,-291.07266829,0.0001973,2]
[357192775,1743882529320,-138.67173591,0.0001973,2]
[357192776,1743882529627,-576.16709332,0.000198,2]
[357192777,1743882529666,-255.10485852,0.000199,2]
[357192778,1743882529704,-2031.66931725,0.000199,2]
[357192779,1743882529744,-158.42574743,0.000199,2]
[357192780,1743882529781,-150.0,0.00019973,2]
[357192781,1743882529818,-500.0,0.00019973,2]
[357192782,1743882529855,-201.15508866,0.0001999,2]
[357192783,1743882529893,-925.02970223,0.00019999,2]
[357192784,1743882529934,-731982.01043331,0.0002,2]
[357192785,1743882529947,-138.67173591,0.0002,2]
[357192786,1743882529962,-435.68171857,0.0002,2]
[357192787,1743882529993,-255.10485852,0.0002,2]
[357192788,1743882530011,-435.68171857,0.0002,2]
[357192789,1743882530023,-158.42574743,0.0002,2]
[357192790,1743882530034,-150.0,0.0002,2]
[357192791,1743882530045,-435.68171857,0.0002,2]
[357192792,1743882530056,-201.15508866,0.0002,2]
[357192793,1743882530070,-435.68171857,0.0002,2]
[357192794,1743882530081,-435.68171857,0.0002,2]
[357192818,1743882631995,-300.0,0.00019809,2]
[357192819,1743882632005,-377.2182405,0.00019809,2]
[357192820,1743882632015,-24937.49579789,0.0001981,2]
[357192821,1743882632026,-2136.35713916,0.0001981,2]
[357192822,1743882632099,-1332.52,0.0001981,2]
[357192823,1743882632155,-4539.3609,0.0001981,2]
[357192824,1743882632365,-486.90482947,0.0001981,2]
[357192900,1743882638444,-0.35160121,0.0001981,2]
[357192902,1743882638457,-3774.94179018,0.0001981,2]
[357192904,1743882638469,-1661.6399997,0.0001981,2]
[357192948,1743882640353,-27766.37259127,0.0001981,2]
[357192949,1743882640531,-1341.15858566,0.0001981,2]
[357192950,1743882640540,-4496.87336086,0.000199,2]
[357192951,1743882640549,-164.99533911,0.00019973,2]
[357192952,1743882640559,-500.0,0.00019973,2]
[357192953,1743882640568,-155.42771769,0.00019973,2]
[357192954,1743882640578,-500.0,0.00019973,2]
[357192955,1743882640587,-500.0,0.00019973,2]
[357192956,1743882640596,-500.0,0.00019973,2]
[357192957,1743882640605,-504.18759803,0.00019973,2]
[357192958,1743882640615,-201.15508866,0.0001999,2]
[357192959,1743882640624,-297.10681167,0.00019999,2]
[357192960,1743882640633,-225399.55060827,0.0002,2]
[357192961,1743882640645,-84194.78559874,0.0002,2]
[357192962,1743882640656,-14297.99999915,0.0002,2]
[357192970,1743882640857,-103.22087306,0.0002,2]
[357192979,1743882644316,-3005.28191703,0.0002,2]
[357192989,1743882799800,-152.735,0.00019333,2]
[357192990,1743882870760,-150.0,0.00019236,2]
[357192991,1743882922545,-105.576127,0.00019236,2]
[357192992,1743882922572,-65.97941944,0.00019681,2]
[357192995,1743882974125,-150.03717506,0.00019667,2]
[357192996,1743882974149,-8.53412918,0.00019681,2]
[357192997,1743883041701,-194.83188909,0.0001951,2]
[357192998,1743883074724,-219.12475319,0.0001951,2]
[357192999,1743883074749,-80.87524681,0.00019549,2]
[357193004,1743883344004,175.14,0.00015178,2]
[357193005,1743883392728,-150.0,0.00018929,2]
[357193006,1743883403435,-250.0,0.00018885,2]
[357193007,1743883430620,-176.67739268,0.00018849,2]
[357193008,1743883444177,-23.32260732,0.00018849,2]
[357193009,1743883444202,-150.51943069,0.00018867,2]
[357193010,1743883454237,-99.48056931,0.00018867,2]
[357193011,1743883454261,-250.0,0.00018885,2]
[357193012,1743883454283,-522.93493069,0.00018929,2]
[357193013,1743883469765,-154.000581,0.00018849,2]
[357193014,1743883479075,-154.000581,0.00018849,2]
[357193015,1743883483896,-233.42040936,0.00018829,2]
[357193016,1743883499405,-154.000581,0.00018825,2]
[357193017,1743883509491,-166.99,0.00018779,2]
[357193021,1743883562535,-175.14,0.00018779,2]
[357193022,1743883600986,-167.8371,0.00018606,2]
[357193023,1743883601513,-167.8371,0.00018606,2]
[357193024,1743883604267,-152.735,0.00018606,2]
[357193025,1743883610675,-250.0,0.00018176,2]
[357193026,1743883618416,-162.2675783,0.00018163,2]
[357193027,1743883621884,-73.3024217,0.00018163,2]
[357193028,1743883621907,-80.6981593,0.00018176,2]
[357193029,1743883633245,-250.0,0.00018139,2]
[357193068,1743883645035,-154.000581,0.0001621,2]
[357193069,1743883682905,-161.6606254,0.0001621,2]
[357193070,1743883697445,-162.2675783,0.0001621,2]
[357193071,1743883704191,-796.09885917,0.0001621,2]
[357193072,1743883707659,-145.93235613,0.0001621,2]
[357193073,1743883707683,-16.33522207,0.00017831,2]
[357193074,1743883712795,-162.2675782,0.00017831,2]
[357193075,1743883715736,-71.39719973,0.00017831,2]
[357193076,1743883715759,-82.60338127,0.00017978,2]
[357193077,1743883739181,-154.000581,0.00017978,2]
[357193078,1743883760391,-154.000581,0.00017888,2]
[357193079,1743883760413,-145.254819,0.00017978,2]
[357193082,1743883802658,-154.000581,0.000179,5]
[357193083,1743883819861,-154.000581,0.000179,5]
[357193084,1743883826128,-150.0,0.000179,5]
[357193117,1743883832190,-489.998838,0.000179,5]
[357193119,1743883832200,-1302.82158517,0.00017978,2]
[357193121,1743883832210,-250.0,0.00018025,2]
[357193123,1743883832219,-150.0,0.00018025,2]
[357193124,1743883832229,-200.0,0.00018025,2]
[357193125,1743883832240,-2414.43,0.00018052,2]
[357193126,1743883832249,-2631.19,0.00018074,2]
[357193127,1743883832258,-500.0,0.00018078,2]
[357193128,1743883832268,-1231.56,0.00018084,2]
[357193129,1743883832278,-1938.43,0.00018084,2]
[357193130,1743883832288,-611.71,0.00018139,2]
[357193132,1743883832297,-300.0,0.00018175,2]
[357193134,1743883832307,-9504.8018407,0.00018176,2]
[357193136,1743883832317,-1419.96,0.00018474,2]
[357193138,1743883832327,-184.53,0.0001859,2]
[357193141,1743883832338,-3398.6208,0.00018606,2]
[357193143,1743883832348,-3887.03,0.00018611,2]
[357193145,1743883832358,-3887.03,0.00018616,2]